Cogmind - Beta 11.2 @@@ ROGUE MODE // 2023.01.03 @ 14:08:16 // Winter2022/Polymind Player: block30 Result: Destroyed by S-10 Pest with Light Assault Rifle Performance ------------- Evolutions (0) 0 Regions Visited (1) 200 Robots Destroyed (3) 15 Value Destroyed (30) 30 Prototype IDs (0) 0 Alien Tech Used (0) 0 Bonus (580) 580 TOTAL SCORE: 325 Bonus ------- Polymind Skill 580 Cogmind --------- Core Integrity 0/250 Matter 91/100 Energy 50/50 System Corruption 0% Temperature Cool (4) Movement Core (50) Location -10/Materials Parts ------- > --- POWER (1) -------- (None) > --- PROPULSION (2) --- (None) > --- UTILITY (0) ------ (None) > --- WEAPON (1) ------- Light Assault Rifle > --- INVENTORY (0) ---- (None) Peak State ------------ > --- POWER ------------ Light Ion Engine > --- PROPULSION ------- Flight Unit Flight Unit > --- UTILITY ---------- (None) > --- WEAPON ----------- Light Assault Rifle > --- INVENTORY -------- (None) [Rating: 4] Favorites ----------- Power Light Ion Engine Engine Light Ion Engine Propulsion Flight Unit Flight Unit Flight Unit Utility None Weapon Light Assault Rifle Ballistic Gun Light Assault Rifle Build | -11 -10 ------- Run | Scr Mat Slots Evolved . | . . Power . | . . Propulsion . | . . Utility . | . . Weapon . | . . Parts Attached . | . . Power . | . . Engine . | . . Core . | . . Reactor . | . . Propulsion . | . . Treads . | . . Leg . | . . Wheel . | . . Hover . | . . Flight . | . . Utility . | . . Device . | . . Storage . | . . Processor . | . . Hackware . | . . Protection . | . . Artifact . | . . Weapon . | . . Energy Gun . | . . Energy Cannon . | . . Ballistic Gun . | . . Ballistic Cannon . | . . Launcher . | . . Special Weapon . | . . Impact Weapon . | . . Slashing Weapon . | . . Piercing Weapon . | . . Special Melee Weapon . | . . Unidentified Prototypes . | . . Parts Lost 3 | . 3 Power 1 | . 1 Propulsion 2 | . 2 Utility . | . . Weapon . | . . Highest Loss Streak 2 | . 2 To Critical Strikes . | . . Average Slot Usage (%) 28 | . 28 Engine 1 | . 1 Flight 14 | . 14 Ballistic Gun 12 | . 12 Naked Turns 80 | . 80 Heaviest Build 1 | . 1 Greatest Support 4 | 3 4 Greatest Overweight (x) . | . . Average Overweight (x) . | . . Largest Inventory Capacity . | . . Average Capacity . | . . Most Carried . | . . Average Carried . | . . Final Capacity . | . . Final Carried . | . . Class Distribution -------------------- 52% | Swarmer 47% | Cogmind Dominant Class ---------------- Swarmer | -10/Materials Resources | -11 -10 ----------- Run | Scr Mat Matter Collected 15 | . 15 Remotely . | . . Salvage Created 15 | . 15 Parts 8 | . 8 Haulers Intercepted . | . . Recyclers Shooed . | . . Parts Field Recycled . | . . Retrieved Matter . | . . Parts Self-Destructed . | . . Prevented . | . . Kills | -11 -10 ------- Run | Scr Mat Combat Hostiles Destroyed 3 | . 3 Guns 3 | . 3 Classes Destroyed 1 | . 1 Swarmer 3 | . 3 Best Kill Streak 3 | . 3 Combat Bots Only 3 | . 3 Max Kills in Single Turn 1 | . 1 Gunslinging . | . . Exploded . | . . Melee . | . . Uniques/NPCs Destroyed . | . . Combat | -11 -10 -------- Run | Scr Mat Damage Taken 370 | . 370 Core 253 | . 253 Absorbed by Shields . | . . Core Remaining (%) 100 | 100 . Volleys Fired 29 | . 29 Largest 1 | . 1 Hottest 20 | . 20 Shots Fired 29 | . 29 Gun 29 | . 29 Cannon . | . . Launcher . | . . Special . | . . Kinetic 29 | . 29 Thermal . | . . Explosive . | . . Electromagnetic . | . . Robot Hit Streak 7 | . 7 Robot Miss Streak 2 | . 2 Penetration Max . | . . Secondary Targets . | . . Shots Hit Robots 17 | . 17 Core Hits 6 | . 6 Critical Kills . | . . Critical Parts Destroyed . | . . Critical Strikes . | . . Melee Attacks . | . . Impact . | . . Slashing . | . . Piercing . | . . Sneak Attacks . | . . Combat Hostiles . | . . Follow-up Attacks . | . . Damage Inflicted 132 | . 132 Guns 132 | . 132 Cannons . | . . Explosions . | . . Melee . | . . Ramming . | . . Kinetic 132 | . 132 Thermal . | . . Explosive . | . . Electromagnetic . | . . Impact . | . . Slashing . | . . Piercing . | . . Highest Corruption . | . . Average Corruption . | . . Corruption Purged . | . . Corruption Blocked . | . . Overload Shots . | . . Overflow Damage . | . . Projectiles . | . . Explosions . | . . Melee . | . . Knockbacks . | . . Impact . | . . Kinetic . | . . Secondary . | . . Self-Inflicted Damage . | . . Shots . | . . Rammed . | . . Targets Rammed . | . . Kicked . | . . Crushed . | . . Highest Temperature 32 | . 32 Average Temperature 13 | . 13 Received Heat Transfer . | . . Siege Activations . | . . Robots Corrupted . | . . Combat Hostiles . | . . Parts Fried . | . . Impact Corruptions . | . . Robots Melted . | . . Combat Hostiles . | . . Parts Melted . | . . Heat Transferred . | . . Parts Sabotaged . | . . Parts Stolen . | . . Parts Stripped . | . . Power Chain Reactions . | . . Missiles Intercepted . | . . Alert | -11 -10 ------- Run | Scr Mat Peak Influence 100 | . 100 Initial . | . . Average 31 | . 33 Maximum Alert Level . | . . Low Security (%) 100 | 100 100 Level 1 . | . . Level 2 . | . . Level 3 . | . . Level 4 . | . . Level 5 . | . . High Security . | . . Max Security . | . . Squads Dispatched 1 | . 1 Investigation . | . . Extermination . | . . Reinforcement 1 | . 1 Assault . | . . Garrison . | . . Intercept . | . . Searches Triggered . | . . Construction Impeded . | . . Haulers Reinforced . | . . Active Scanning Responses . | . . Cargo Convoy Interrupts . | . . Stealth | -11 -10 --------- Run | Scr Mat Distress Signals . | . . Communications Jammed . | . . Distress Signals . | . . Times Spotted 16 | . 16 Peak Tracking Total 7 | . 7 Tactical Retreats . | . . Traps | -11 -10 ------- Run | Scr Mat Traps Triggered . | . . Indirectly . | . . Trap Hack Attempts . | . . Triggered . | . . Disarmed . | . . Reprogrammed . | . . Reused . | . . Traps Extracted . | . . Installed . | . . Triggered . | . . Machines | -11 -10 ---------- Run | Scr Mat Machines Disabled . | . . Max in Single Turn . | . . Machines Sabotaged . | . . Garrisons Compromised . | . . Overloaded Fab Kills . | . . Hacking | -11 -10 --------- Run | Scr Mat Machines Accessed 1 | . 1 Terminals 1 | . 1 Fabricators . | . . Repair Stations . | . . Recycling Units . | . . Scanalyzers . | . . Garrison Access . | . . Total Hacks 1 | . 1 Successful . | . . Failed 1 | . 1 Catastrophic . | . . Database Lockouts . | . . Manual . | . . Terminals 1 | . 1 Fabricators . | . . Repair Stations . | . . Recycling Units . | . . Scanalyzers . | . . Garrison Access . | . . Terminal Hacks . | . . Fabricator Hacks . | . . Repair Station Hacks . | . . Recycling Unit Hacks . | . . Scanalyzer . | . . Garrison Access Hacks . | . . Unauthorized Hacks . | . . Terminals . | . . Fabricators . | . . Repair Stations . | . . Recycling Units . | . . Scanalyzers . | . . Garrison Access . | . . Data Cores Recovered . | . . Used . | . . Hacking Detections . | . . Full Trace Events . | . . Feedback Events . | . . Feedback Blocked . | . . Robot Schematics Acquired . | . . Robots Built . | . . Authchips . | . . Time . | . . Total Robot Build Rating . | . . Part Schematics Acquired . | . . Parts Built . | . . Authchips . | . . Time . | . . Total Part Build Rating . | . . Parts Repaired . | . . Time . | . . Parts Recycled . | . . Recycled Matter . | . . Retrieved Matter . | . . Retrieved Components . | . . Parts Scanalyzed . | . . Part Schematics Acquired . | . . Parts Damaged . | . . Bothacking | -11 -10 ------------ Run | Scr Mat Used RIF Installer . | . . Robots Hacked 1 | . 1 Non-combat . | . . Combat 1 | . 1 Robot Hacks Applied 1 | . 1 find_shortcuts 1 | . 1 Relay Couplers Released . | . . Fabnet Peak Effective % . | . . Robots Rewired . | . . Allies Hacked . | . . Hacks Repelled . | . . Allies | -11 -10 -------- Run | Scr Mat Total Allies . | . . Largest Group . | . . Highest-Rated Group . | . . Highest-Rated Ally . | . . Total Orders . | . . Ally Attacks . | . . Total Damage . | . . Kills . | . . Allies Corrupted . | . . Allies Melted . | . . Intel | -11 -10 ------- Run | Scr Mat Robot Analysis Total 1 | . 1 Derelict Logs Recovered . | . . Drone Launches . | . . Drone Recoveries . | . . Exploration | -11 -10 ------------- Run | Scr Mat Turns Passed 178 | 11 167 Spaces Moved 269 | 23 246 Core 195 | 23 172 Treads . | . . Legs . | . . Wheels . | . . Hover . | . . Flight 74 | . 74 Fastest Speed 40 | 50 40 Average Speed 47 | 50 46 Slowest Speed 50 | 50 50 Overloaded Moves . | . . Propulsion Burnouts . | . . Robots Hopped 3 | . 3 Cave-ins Triggered . | . . Exploration Rate (%) 26 | 3 50 Regions Visited 1 Branch Regions . Pre-discovered Areas . | . . Known Exits Taken . | . . Unknown Exits Taken 1 | 1 . Scrap Searched . | . . Spaces Dug . | . . Terrain Destroyed . | . . Melee . | . . Projectile . | . . AOE . | . . Terrain Rammed . | . . Walls Destroyed . | . . Machines Disabled . | . . Actions | -11 -10 --------- Run | Scr Mat Total 294 | 22 272 Wait . | . . Move 263 | 22 241 Hop 2 | . 2 Pick Up . | . . Fast Attach . | . . Attach . | . . Detach . | . . Swap . | . . Drop . | . . Fire 29 | . 29 Melee . | . . Ram . | . . Kick . | . . Crush . | . . Escape Stasis . | . . Rewire . | . . Trap . | . . Miscellaneous . | . . Route ------- -11/Scrapyard -10/Materials History --------- Turn | Location | Event 4 | -11/Scrapyard | Discovered new exit (range 14) 12 | -11/Scrapyard | Entered Materials 89 | -10/Materials | Core integrity fell below 50% 117 | -10/Materials | Core integrity fell below 20% 179 | -10/Materials | Destroyed by S-10 Pest with Light Assault Rifle Last Messages --------------- 00101_ S-10 Pest destroyed. 00103_ Acquired 1 matter. 00108_ Lgt. Ion Engine destroyed. 00110_ Acquired 1 matter. 00113_ S-10 Pest destroyed. 00114_ R-06 Scavenger collects Lgt. Assault Rifle. 00117_ R-06 Scavenger collects Flight Unit. 00118_ Flight Unit destroyed. 00121_ R-06 Scavenger collects Flight Unit. 00122_ S-10 Pest destroyed. 00122_ R-06 Scavenger collects Lgt. Assault Rifle. 00123_ Protomatter-5 decays. 00124_ R-06 Scavenger collects Lgt. Ion Engine. 00126_ R-06 Scavenger collects Flight Unit. 00156_ O-16 Technician: "IFF HANDSHAKE FAILED. SECURING TERMINAL." 00166_ ALERT: Hostiles spotted, dispatching reinforcements to Terminal M006. 00169_ Flight Unit destroyed. 00171_ S-10 Pest destroyed. 00172_ K-01 Serf cleans the Fusion Modulator. Map ----- +----------------------------------------------------+ | | | | | | | ????????????????????????????????????????? | | ????????????????????????????????????????? | | ????????????????????????????????????????? | | ????????????????????????????????????????? | | ??????????????#?????????????????????????? | | ?????????????# ?????????????????????????? | | ?????????????# ?????????????????????????? | | ??????==]????# ?????????? ??????????????? | | ????====]????# ?????????? ??????????????? | | ???? ???# ???######? ??????????????? | | ???# #### #### # ?????????#????? | | ???? ## # ??????? #????? | | ???? + ! # ?????? #????? | | ????? T ## # ?????? #????? | | ??????# ## # #???? #????? | | ??????# "# # #???? #?????? | | ??????# T# # #??? #??????? | | ??????+ "# # #### #??????? | | ??????# """ #?? # +??????? | | ??????# """ #?? # ????????? | | ??????# """ #??? # ??????????? | | ??????# """ *#??? # #???????????? | | ??????# """ =%#####+##s #???????????? | | ?? # [ sm + !! ???????? | | ?? + #???????????? | | ??????# s #???????????? | | ??????# ###########+#######???????????? | | ??????# #???????? ????????????????? | | ??????# #?????? """ """ ??????????????? | | #####?# #?????# """ """ #?????????????? | | " # #?????# """ """ #?????????????? | | " ! # #?????? ??????????????? | | " ?# #??????? ! ???????????????? | | ?# #???????"T" ?????########??? | | ??# #???????? ??????# #??? | | ??# #?????????####?###### """ !#??? | | "???# #??????????????# *=/ """ #??? | | "???# #??????????????# % %#*""" #??? | | #+##### ################ =%# #??? | | ^ * # | #??? | | ^ #####+########??? | | # [ #??????? | | """ # """#??????? | | """ # """#??????? | | """ + """#??????? | | ]]!############### #??????? | | ]]!#?????????????# """#??????? | +----------------------------------------------------+ Best States ------------- Heat Dissipation 25 Energy Generation 15 Energy Capacity 100 Matter Stores 99 Matter Capacity 100 Sight Range 16 Terrain Scan Density 10 Evasion (%) 62 Item Schematics ----------------- None Robot Schematics ------------------ None Fabricated ------------ Nothing Alien Tech Used ----------------- None Achievements -------------- None Challenges ------------ None Polymind | -11 -10 ---------- Run | Scr Mat Hosts 1 | . 1 Combat Hostiles 1 | . 1 Allies . | . . Unique Host Classes 1 | . 1 Average Host Suspicion 100 | . 100 Unsuspicious Activity . | . . Returns to Shadow . | . . Fuzzy Dispatches . | . . Protomatter Created 9 | . 9 Used 6 | . 6 Decayed 9 | . 9 Highest Spend 6 | . 6 Top 5 Hosts by Kills: S-10 Pest (-10/Materials: 3) Game ------ Seed WarpAutogunDetonator Manual? 0 Play Time 00:04:29 Cumulative 2.2 hours Start 2023.01.03 @ 14:05:38 End 2023.01.03 @ 14:08:16 Sessions 1 Manual Loads 0 Difficulty Rogue Special Mode Winter2022/Polymind Game No. 13 Rogue 11 Adventurer 1 Explorer 1 Win Type - Total 0 Types 0/0/0/0/0/0/0/0/0 Lore% 12 Gallery% 0 Achievement% 12 Wizard Run 0 Options --------- ASCII 0 Keyboard 1 Movement Arrows Keybinds 0 Fullscreen 2 Font 18/TerminusBold Map View 76x50 Tactical HUD 1 Map Filters NONE Filters NONE Steam 1 RUN: 2d261910-3777-4d86-a7d1-f155c7ebf47b